bitfinex-derivatives/quotes_SOLF0:USTF0_20241025
["timestamp","ask_amount","ask_price","bid_price","bid_amount"]
[1729899516944,34.38510122,164.07,163.92,34.38510122]
[1729899517138,3.0529,164.04,163.96,3.0542]
[1729899517341,34.38510122,164.07,163.96,3.0542]
[1729899517649,34.38510122,164.1,163.95,34.38510122]
[1729899517840,3.0528,164.04,163.98,3.0537]
[1729899519143,34.38510122,164.1,163.95,34.38510122]
[1729899519343,34.38510122,164.07,163.95,34.38510122]
[1729899519847,34.38510122,164.15,163.93,59.3]
[1729899520048,34.38510122,164.04,163.93,59.3]
[1729899521443,34.38510122,164.07,163.93,59.3]
[1729899521644,34.38510122,164.1,163.94,34.38510122]
[1729899521851,34.38510122,164.1,163.98,3.0538]
[1729899522850,34.38510122,164.04,163.93,59.3]
[1729899523051,34.38510122,164.09,163.93,93.68510122]
[1729899523237,34.38510122,164.09,163.95,34.38510122]
[1729899523442,3.0526,164.05,163.98,3.0537]
[1729899523746,34.38510122,164.09,163.95,34.38510122]
[1729899524147,3.0527,164.04,163.98,3.0537]
[1729899524446,3.08999707,164.17,163.96,2.4693]
[1729899524653,34.38510122,164.31,164.02,3.0529]
[1729899524654,3.0522,164.08,164.02,3.0529]
[1729899524846,34.38510122,164.15,164.02,3.0529]
[1729899525250,34.38510122,164.15,163.99,34.38510122]
[1729899525446,34.38510122,164.12,163.97,2.6072]
[1729899525647,34.38510122,164.1,163.97,2.6072]
[1729899525847,34.38510122,164.07,163.97,2.6072]
[1729899526050,3.0527,164.04,163.97,2.6072]
[1729899526255,34.38510122,164.07,163.97,2.6072]
[1729899526853,34.38510122,164.12,163.97,2.6072]
[1729899527044,34.38510122,164.1,163.97,2.6072]
[1729899527848,3.0522,164.07,164.02,3.0531]
[1729899528845,34.38510122,164.12,164.02,3.0531]
[1729899529049,3.0518,164.09,164.02,3.0531]
[1729899529343,34.38510122,164.12,164.03,3.0527]
[1729899529546,3.0517,164.1,164.01,34.38510122]
[1729899529855,583.18873091,164.45,164.01,34.38510122]
[1729899529856,34.38510122,164.18,164.01,34.38510122]
[1729899530054,34.38510122,164.18,164.04,34.38510122]
[1729899530555,3.0512,164.12,164.07,3.052]
[1729899530752,34.38510122,164.15,164.01,34.38510122]
[1729899530953,3.0518,164.1,163.99,34.38510122]
[1729899531150,34.38510122,164.15,163.99,34.38510122]
[1729899531755,34.38510122,164.15,164.04,3.0527]
[1729899531756,3.0518,164.1,164.04,3.0527]
[1729899531955,34.38510122,164.15,163.99,34.38510122]
[1729899532458,34.38510122,164.1,163.97,2.6072]
[1729899533152,3.0529,164.03,163.98,3.0538]
[1729899534349,34.38510122,164.04,163.88,2.434]
[1729899534557,2.98495853,164.09,163.89,34.38510122]
[1729899534846,3.0535,164.0,163.95,3.0544]
[1729899535047,3.0535,164.0,163.91,34.38510122]
[1729899535255,34.38510122,164.07,163.91,34.38510122]
[1729899535550,3.0538,163.99,163.91,34.38510122]
[1729899535858,34.38510122,164.04,163.88,2.434]
[1729899536048,34.38510122,164.04,163.9,34.38510122]
[1729899536859,3.0537,163.99,163.9,34.38510122]
[1729899537453,3.0535,164.0,163.94,3.0545]
[1729899537854,34.38510122,164.04,163.94,3.0545]
[1729899538049,3.0533,164.01,163.94,3.0545]
[1729899538245,34.38510122,164.15,163.96,3.0542]
[1729899538246,34.38510122,164.07,163.96,3.0542]
[1729899538545,34.38510122,164.1,163.96,4.0]
[1729899538749,3.0523,164.07,164.0,3.0533]
[1729899539161,34.38510122,164.1,164.0,3.0533]
[1729899539356,34.38510122,164.1,163.96,9.1681]
[1729899539357,34.38510122,164.04,163.96,4.0]
[1729899539555,34.38510122,164.15,163.96,4.0]
[1729899539754,3.0538,163.99,163.96,4.0]
[1729899540056,34.38510122,164.03,163.96,4.0]
[1729899540258,34.38510122,164.06,163.96,4.0]
[1729899540761,3.0533,164.01,163.96,7.0542]
[1729899541057,9.21218338,164.19,163.96,38.38510122]
[1729899541249,34.38510122,164.07,163.96,4.0]
[1729899541452,34.38510122,164.03,163.96,4.0]
[1729899541963,34.38510122,164.0,163.96,3.9493]
[1729899542349,3.054,163.97,163.96,3.9493]
[1729899543160,3.054,163.97,163.96,3.927]
[1729899543357,3.0557,163.89,163.83,5.1681]
[1729899543561,34.38510122,163.88,163.74,59.32]
[1729899543756,34.38510122,163.85,163.74,59.32]
[1729899544063,34.38510122,163.83,163.71,5.1419]
[1729899544267,34.38510122,163.8,163.71,5.1419]
[1729899544568,3.0582,163.75,163.66,37.44480122]
[1729899544758,34.38510122,163.8,163.66,34.38510122]
[1729899545062,34.38510122,163.78,163.65,59.32]
[1729899545261,34.38510122,163.66,163.55,8.30906229]
[1729899545465,34.38510122,163.63,163.55,8.30906229]
[1729899545662,37.37730949,163.75,163.55,8.30906229]
[1729899545858,34.38510122,163.64,163.55,8.30906229]
[1729899546856,34.38510122,163.66,163.55,8.30906229]
[1729899547254,34.38510122,163.66,163.56,5.83128743]
[1729899547255,3.0599,163.66,163.56,5.83128743]
[1729899547466,34.38510122,163.75,163.56,2.76968743]
[1729899547765,34.38510122,163.65,163.56,2.76968743]
[1729899548366,3.061,163.6,163.56,2.76968743]
[1729899548566,34.38510122,163.75,163.56,2.76968743]
[1729899548867,34.38510122,163.67,163.56,2.76968743]
[1729899550269,3.06,163.65,163.56,2.76968743]
[1729899550574,34.38510122,163.67,163.56,2.76968743]
[1729899550865,34.38510122,163.72,163.6,34.38510122]
[1729899551369,34.38510122,163.72,163.57,34.38510122]
[1729899551559,34.38510122,163.69,163.54,34.38510122]
[1729899551958,231.04,164.09,163.6,34.38510122]
[1729899552269,34.38510122,163.82,163.66,34.38510122]
[1729899552570,34.38510122,163.82,163.69,34.38510122]
[1729899552762,34.38510122,163.85,163.69,34.38510122]
[1729899552964,34.38510122,163.88,163.72,34.38510122]
[1729899553273,34.38510122,163.85,163.69,34.38510122]
[1729899553569,3.0552,163.91,163.82,3.0568]
[1729899553766,34.38510122,163.93,163.8,34.38510122]
[1729899554870,34.38510122,163.93,163.81,3.0569]
[1729899555771,34.38510122,163.93,163.77,34.38510122]
[1729899555972,3.0552,163.91,163.83,3.0566]
[1729899556569,34.38510122,163.91,163.77,34.38510122]
[1729899556866,34.38510122,163.86,163.59,59.4]
[1729899557062,34.38510122,163.91,163.67,3.0595]
[1729899557063,34.38510122,163.8,163.67,3.0595]
[1729899557266,34.38510122,163.8,163.66,34.38510122]
[1729899557667,34.38510122,163.83,163.66,34.38510122]
[1729899557868,3.0579,163.77,163.7,3.059]
[1729899558064,34.38510122,163.83,163.66,34.38510122]
[1729899558263,34.38510122,163.79,163.66,34.38510122]
[1729899558568,34.38510122,163.79,163.63,5.105]
[1729899558569,34.38510122,163.79,163.64,34.38510122]
[1729899558969,34.38510122,163.79,163.68,3.0593]
[1729899559372,34.38510122,163.79,163.64,34.38510122]
[1729899559975,34.38510122,163.79,163.67,3.0595]
[1729899560174,34.38510122,163.83,163.67,34.38510122]
[1729899560472,34.38510122,163.86,163.69,34.38510122]
[1729899560672,34.38510122,163.83,163.66,34.38510122]
[1729899561277,3.0578,163.77,163.66,34.38510122]
[1729899561577,34.38510122,163.83,163.66,34.38510122]
[1729899561777,3.0564,163.85,163.73,34.38510122]
[1729899561969,3.0564,163.85,163.66,34.38510122]
[1729899561970,34.38510122,163.91,163.76,34.38510122]
[1729899562274,34.38510122,163.85,163.7,34.38510122]
[1729899562577,34.38510122,163.87,163.73,34.38510122]
[1729899562763,34.38510122,163.99,163.76,34.38510122]
[1729899562764,34.38510122,163.9,163.76,34.38510122]
[1729899563177,34.38510122,163.96,163.81,34.38510122]
[1729899563566,34.38510122,163.98,163.84,34.38510122]
[1729899564272,3.0544,163.95,163.88,3.0556]
[1729899564473,3.0544,163.95,163.84,34.38510122]
[1729899564879,3.0546,163.94,163.87,3.0559]
[1729899566679,34.38510122,163.93,163.77,7.7677]
[1729899566875,34.38510122,163.93,163.77,42.15280122]
[1729899567479,34.38510122,163.93,163.82,3.0568]
[1729899567683,34.38510122,163.93,163.77,42.15280122]
[1729899568169,34.38510122,163.89,163.77,42.15280122]
[1729899568374,34.38510122,163.92,163.77,42.15280122]
[1729899568568,3.0557,163.89,163.81,3.057]
[1729899569568,34.38510122,163.92,163.81,3.057]
[1729899569773,3.0561,163.86,163.79,3.0574]
[1729899569973,34.38510122,163.92,163.77,42.15280122]
[1729899570176,3.0559,163.87,163.81,3.0569]
[1729899570477,3.0559,163.87,163.77,42.15280122]
[1729899570679,34.38510122,163.92,163.77,42.15280122]
[1729899571177,3.0841238,164.0,163.77,7.7677]
[1729899571372,34.38510122,163.89,163.77,7.7677]
[1729899572275,3.0562,163.86,163.77,7.7677]
[1729899572582,34.38510122,163.92,163.77,42.15280122]
[1729899572981,34.38510122,163.98,163.83,34.38510122]
[1729899573283,34.38510122,164.01,163.86,34.38510122]
[1729899573483,34.38510122,164.01,163.83,34.38510122]
[1729899573484,3.0536,164.0,163.93,3.0548]
[1729899573678,34.38510122,164.04,163.89,34.38510122]
[1729899573980,34.38510122,164.04,163.84,59.38]
[1729899573981,3.0535,164.0,163.93,37.43980122]
[1729899574181,34.38510122,164.06,163.9,34.38510122]
[1729899574375,34.38510122,164.03,163.87,34.38510122]
[1729899574681,3.0545,163.95,163.87,3.0558]
[1729899574882,34.38510122,164.0,163.84,59.38]
[1729899575482,3.0545,163.95,163.84,59.38]
[1729899575780,34.38510122,164.0,163.84,59.38]
[1729899575983,34.38510122,164.06,163.86,34.38510122]
[1729899576386,34.38510122,164.0,163.86,34.38510122]
[1729899576584,34.38510122,164.0,163.84,59.38]
[1729899576882,3.0548,163.93,163.83,93.74510122]
[1729899577472,34.38510122,164.06,163.91,34.38510122]
[1729899578077,34.38510122,164.06,163.92,3.0549]
[1729899578283,34.38510122,164.03,163.91,34.38510122]
[1729899578581,3.0533,164.01,163.94,3.0546]
[1729899578785,34.38510122,164.06,163.91,34.38510122]
[1729899578988,34.38510122,164.03,163.91,34.38510122]
[1729899579280,34.38510122,164.06,163.91,34.38510122]
[1729899579482,34.38510122,164.06,163.92,2.6546]
[1729899579677,34.38510122,164.09,163.94,34.38510122]
[1729899580074,34.38510122,164.03,163.92,2.6546]
[1729899580276,3.0534,164.01,163.94,3.0545]
[1729899580483,34.38510122,164.03,163.94,3.0545]
[1729899581082,34.38510122,164.03,163.92,5.7094]
[1729899581482,34.38510122,164.0,163.92,2.6546]
[1729899581684,3.0543,163.96,163.84,59.34]
[1729899581985,34.38510122,164.0,163.85,2.5432]
[1729899582181,3.0542,163.96,163.89,3.0554]
[1729899582584,34.38510122,164.0,163.89,3.0554]
[1729899582785,34.38510122,164.0,163.85,2.5432]
[1729899582986,34.38510122,163.97,163.86,3.0561]
[1729899583189,34.38510122,163.97,163.85,2.5432]
[1729899583385,34.38510122,163.98,163.85,2.5432]
[1729899583688,34.38510122,163.95,163.85,2.5432]
[1729899584686,34.38510122,163.89,163.73,59.36]
[1729899584893,34.38510122,163.89,163.75,2.4533]
[1729899585093,34.38510122,163.86,163.75,2.4533]
[1729899586289,3.0566,163.83,163.76,3.0579]
[1729899586487,34.38510122,163.89,163.75,2.4533]
[1729899586792,34.38510122,163.84,163.75,2.4533]
[1729899587396,34.38510122,163.78,163.35,575.0]
[1729899587686,59.36,163.78,163.56,34.38510122]
[1729899587991,3.0602,163.64,163.56,34.38510122]
[1729899588195,34.38510122,163.7,163.56,34.38510122]
[1729899588684,3.0602,163.64,163.56,34.38510122]
[1729899588883,3.0602,163.64,163.55,3.0618]
[1729899589089,34.38510122,163.68,163.55,3.0618]
[1729899589386,34.38510122,163.75,163.58,3.0612]
[1729899589387,34.38510122,163.7,163.58,3.0612]
[1729899589592,34.38510122,163.7,163.56,34.38510122]
[1729899590289,34.38510122,163.67,163.53,3.0622]
[1729899591186,34.38510122,163.69,163.56,34.38510122]
[1729899591392,34.38510122,163.64,163.51,2.6024]
[1729899591686,3.0609,163.61,163.53,3.0622]
[1729899592079,3.061,163.6,163.51,5.6648]
[1729899592286,34.38510122,163.64,163.51,2.6024]
[1729899592983,3.0613,163.58,163.51,5.665]
[1729899593190,34.38510122,163.64,163.51,2.6024]
[1729899594286,3.0609,163.61,163.54,3.062]
[1729899594489,3.0609,163.61,163.51,2.6024]
[1729899596285,3.0609,163.61,163.53,3.0622]
[1729899597189,34.38510122,163.64,163.52,3.0624]
[1729899597593,34.38510122,163.64,163.51,2.6024]
[1729899597888,34.38510122,163.64,163.51,5.665]
[1729899598686,3.06008792,163.78,163.63,3.0603]
[1729899598995,34.38510122,163.75,163.62,34.38510122]
[1729899599191,34.38510122,163.75,163.64,3.0601]
[1729899599388,34.38510122,163.75,163.62,34.38510122]
[1729899599783,3.0595,163.68,163.62,34.38510122]
[1729899599982,34.38510122,163.75,163.58,17.4806]
[1729899600187,34.38510122,163.75,163.6,37.44580122]
[1729899600890,34.38510122,163.75,163.6,34.38510122]
[1729899601483,34.38510122,163.78,163.63,34.38510122]
[1729899601690,3.0594,163.69,163.63,34.38510122]
[1729899601889,34.38510122,163.73,163.6,34.38510122]
[1729899602487,34.38510122,163.73,163.58,17.4806]
[1729899602687,34.38510122,163.67,163.58,14.82]
[1729899602891,34.38510122,163.67,163.54,62.5019]
[1729899603192,34.38510122,163.67,163.51,2.6024]
[1729899603193,3.0617,163.56,163.51,2.6024]
[1729899603594,34.38510122,163.61,163.51,2.6024]
[1729899603791,3.0625,163.52,163.47,2.6708]
[1729899604097,34.38510122,163.59,163.45,237.04574424]
[1729899604794,3.0622,163.54,163.45,237.04574424]
[1729899604997,3.0622,163.54,163.47,3.0634]
[1729899605197,34.38510122,163.59,163.45,237.04574424]
[1729899605790,34.38510122,163.56,163.45,237.04574424]
[1729899605995,34.38510122,163.56,163.45,177.60574424]
[1729899606600,3.0631,163.49,163.45,177.60574424]
[1729899607602,3.0631,163.49,163.43,3.064]
[1729899607799,34.38510122,163.51,163.36,93.84510122]
[1729899608198,118.43934312,163.88,163.36,59.46]
[1729899608392,34.38510122,163.78,163.63,34.38510122]
[1729899608593,34.38510122,163.82,163.66,34.38510122]
[1729899608794,1.01823011,163.72,163.69,34.38510122]
[1729899609001,2.6703,163.86,163.71,34.38510122]
[1729899609195,2.6703,164.0,163.78,34.38510122]
[1729899609395,34.38510122,163.91,163.75,34.38510122]
[1729899610095,34.38510122,163.94,163.75,34.38510122]
[1729899610298,34.38510122,163.94,163.78,34.38510122]
[1729899610902,34.38510122,163.91,163.75,34.38510122]
[1729899611505,3.0565,163.84,163.75,34.38510122]
[1729899611797,34.38510122,163.88,163.72,34.38510122]
[1729899612000,34.38510122,163.82,163.66,34.38510122]
[1729899612201,34.38510122,163.79,163.63,37.00700122]
[1729899612500,34.38510122,163.73,163.57,3.0614]
[1729899612703,34.38510122,163.73,163.56,34.38510122]
[1729899613009,3.0601,163.65,163.56,34.38510122]
[1729899613302,3.0601,163.65,163.55,2.6387]
[1729899613897,34.38510122,163.64,163.36,59.44]
[1729899614101,34.38510122,163.61,163.48,34.38510122]
[1729899614501,34.38510122,163.64,163.51,34.38510122]
[1729899615002,3.0605,163.63,163.52,3.0624]
[1729899615205,34.38510122,163.67,163.52,3.0624]
[1729899616308,34.38510122,163.7,163.53,34.38510122]
[1729899616510,34.38510122,163.73,163.59,34.38510122]
[1729899616812,3.0584,163.74,163.63,3.0602]
[1729899617202,3.0588,163.72,163.63,3.0602]
[1729899617614,34.38510122,163.76,163.62,34.38510122]
[1729899617805,34.38510122,163.76,163.6,2.47]
[1729899618007,3.0589,163.71,163.6,2.47]
[1729899618312,34.38510122,163.76,163.64,3.0601]
[1729899618504,34.38510122,163.76,163.63,34.38510122]
[1729899618704,34.38510122,163.79,163.63,34.38510122]
[1729899619108,3.0581,163.75,163.66,3.0597]
[1729899619306,34.38510122,163.83,163.66,34.38510122]
[1729899619708,34.38510122,163.83,163.63,34.38510122]
[1729899619709,34.38510122,163.77,163.63,34.38510122]
[1729899619900,3.0586,163.73,163.63,34.38510122]
[1729899620309,34.38510122,163.77,163.63,34.38510122]
[1729899620613,34.38510122,163.74,163.6,4.9761]
[1729899620909,34.38510122,163.83,163.6,4.9761]
[1729899621110,3.0588,163.72,163.6,4.9761]
[1729899621609,34.38510122,163.74,163.6,4.9761]
[1729899621814,3.0589,163.71,163.63,3.0604]
[1729899622009,34.38510122,163.74,163.6,4.9761]
[1729899622805,34.38510122,163.77,163.6,4.9761]
[1729899623005,34.38510122,163.77,163.63,34.38510122]
[1729899623306,34.38510122,163.83,163.68,34.38510122]
[1729899623508,3.04352265,163.95,163.74,34.38510122]
[1729899623909,3.0556,163.89,163.81,3.057]
[1729899624102,34.38510122,163.93,163.77,34.38510122]
[1729899624419,3.0562,163.86,163.78,3.0575]
[1729899624712,34.38510122,163.92,163.78,34.38510122]
[1729899624913,3.0556,163.89,163.82,3.0568]
[1729899625108,34.38510122,163.92,163.78,49.14510122]
[1729899625507,3.0557,163.88,163.78,49.14510122]
[1729899625702,34.38510122,163.92,163.75,5.2674]
[1729899625902,34.38510122,163.9,163.75,39.65250122]
[1729899626709,34.38510122,163.9,163.79,3.0573]
[1729899626710,3.0559,163.87,163.79,3.0573]
[1729899627010,34.38510122,163.84,163.75,2.6992]
[1729899627510,34.38510122,163.81,163.71,3.0587]
[1729899628213,3.0578,163.77,163.7,3.059]
[1729899628415,34.38510122,163.81,163.66,34.38510122]
[1729899628802,3.0583,163.74,163.67,3.0596]
[1729899629008,34.38510122,163.78,163.64,2.5725]
[1729899630312,34.38510122,163.81,163.69,34.38510122]
[1729899630514,34.38510122,163.85,163.72,34.38510122]
[1729899631312,34.38510122,163.85,163.72,37.44360122]
[1729899632106,3.0573,163.8,163.72,37.44360122]
[1729899632608,3.0565,163.84,163.72,34.38510122]
[1729899632817,34.38510122,163.84,163.72,34.38510122]
[1729899633111,34.38510122,163.84,163.73,3.0585]
[1729899633319,3.0573,163.8,163.73,3.0585]
[1729899633513,34.38510122,163.84,163.72,34.38510122]
[1729899633704,17.3228,163.9,163.75,3.0581]
[1729899633705,34.38510122,163.87,163.75,3.0581]
[1729899633907,3.00058645,163.99,163.75,3.0581]
[1729899634106,34.38510122,163.92,163.75,34.38510122]
[1729899634404,34.38510122,163.9,163.76,2.4563]
[1729899634605,34.38510122,163.92,163.78,34.38510122]
[1729899634804,34.38510122,163.89,163.76,2.4563]
[1729899635211,34.38510122,163.89,163.78,3.0576]
[1729899635416,34.38510122,163.89,163.76,2.4563]
[1729899636413,3.057,163.81,163.76,2.4563]
[1729899637314,3.0568,163.82,163.76,2.4563]
[1729899638421,34.38510122,163.92,163.76,36.84140122]
[1729899638616,34.38510122,163.92,163.78,34.38510122]
[1729899638823,34.38510122,163.95,163.81,34.38510122]
[1729899639124,34.38510122,164.07,163.81,34.38510122]
[1729899639125,34.38510122,163.98,163.84,34.38510122]
[1729899639521,3.0551,163.91,163.85,3.0561]
[1729899639822,34.38510122,163.98,163.84,34.38510122]
[1729899640121,34.38510122,163.93,163.81,14.74]
[1729899640712,3.0554,163.9,163.81,14.74]
[1729899640920,34.38510122,163.93,163.81,14.74]
[1729899641217,3.0574,163.79,163.71,3.0587]
[1729899641418,34.38510122,163.82,163.69,34.38510122]
[1729899641619,34.38510122,163.85,163.7,34.38510122]
[1729899641820,34.38510122,163.85,163.72,3.0586]
[1729899642626,3.0576,163.79,163.72,3.0586]
[1729899643022,3.0582,163.75,163.68,3.0594]
[1729899643221,34.38510122,163.85,163.66,34.38510122]
[1729899643429,34.38510122,163.85,163.72,34.38510122]
[1729899643624,3.0576,163.79,163.72,37.44370122]
[1729899643824,34.38510122,163.85,163.72,37.44370122]
[1729899644721,3.0581,163.75,163.69,34.38510122]
[1729899644933,34.38510122,163.82,163.66,34.38510122]
[1729899645422,34.38510122,163.79,163.67,3.0596]
[1729899646031,3.058,163.76,163.67,3.0596]
[1729899646330,34.38510122,163.7,163.47,14.74]
[1729899646522,51.68910122,163.75,163.56,34.38510122]
[1729899646725,34.38510122,163.72,163.56,34.38510122]
[1729899646923,34.38510122,163.69,163.56,34.38510122]
[1729899647119,3.0604,163.63,163.56,34.38510122]
[1729899647318,34.38510122,163.69,163.56,37.44670122]
[1729899647524,34.38510122,163.66,163.41,14.74]
[1729899647827,3.0602,163.64,163.54,34.38510122]
[1729899648126,34.38510122,163.69,163.55,3.0618]
[1729899648727,3.0606,163.62,163.54,34.38510122]
[1729899648933,34.38510122,163.69,163.54,37.44710122]
[1729899649429,3.0606,163.62,163.54,37.44710122]
[1729899649733,34.38510122,163.66,163.54,34.38510122]
[1729899651922,34.38510122,163.66,163.51,34.38510122]
[1729899652129,34.38510122,163.63,163.49,2.5318]
[1729899652335,34.38510122,163.65,163.51,34.38510122]
[1729899652523,3.0611,163.59,163.53,3.0621]
[1729899653321,34.38510122,163.68,163.54,34.38510122]
[1729899653527,34.38510122,163.71,163.57,34.38510122]
[1729899653829,34.38510122,163.65,163.51,34.38510122]
[1729899654231,34.38510122,163.68,163.54,34.38510122]
[1729899655233,34.38510122,163.68,163.56,3.0617]
[1729899656031,34.38510122,163.68,163.54,34.38510122]
[1729899656234,34.38510122,163.68,163.57,3.0615]
[1729899656530,34.38510122,163.68,163.49,36.91690122]
[1729899657332,3.0606,163.62,163.56,3.0617]
[1729899657530,34.38510122,163.71,163.56,48.86510122]
[1729899657828,3.0604,163.64,163.57,3.0615]
[1729899659435,34.38510122,163.66,163.56,14.48]
[1729899660323,34.38510122,163.69,163.56,14.48]
[1729899660526,34.38510122,163.69,163.49,36.91690122]
[1729899660527,34.38510122,163.63,163.49,2.5318]
[1729899660729,34.38510122,163.67,163.5,34.38510122]
[1729899660930,34.38510122,163.67,163.53,34.38510122]
[1729899661730,34.38510122,163.67,163.55,3.0619]
[1729899661929,34.38510122,163.67,163.5,34.38510122]
[1729899662135,3.0613,163.58,163.52,3.0623]
[1729899662328,34.38510122,163.63,163.5,34.38510122]
[1729899662531,34.38510122,163.63,163.51,3.0624]
[1729899662730,34.38510122,163.63,163.5,34.38510122]
[1729899662927,34.38510122,163.6,163.49,2.5318]
[1729899663131,34.38510122,163.6,163.45,34.38510122]
[1729899663435,34.38510122,163.6,163.34,177.6931666]
[1729899663436,34.38510122,163.52,163.39,34.38510122]
[1729899663641,34.38510122,163.52,163.38,7.7949]
[1729899663642,34.38510122,163.49,163.38,10.8599]
[1729899663931,34.38510122,163.49,163.38,2.6447]
[1729899664134,3.0646,163.41,163.38,2.6447]
[1729899664337,14.48,163.54,163.35,34.38510122]
[1729899664542,34.38510122,163.51,163.35,34.38510122]
[1729899664837,3.0629,163.5,163.4,3.0646]
[1729899665236,34.38510122,163.54,163.4,34.38510122]
[1729899665828,3.0624,163.52,163.41,3.0643]
[1729899666135,34.38510122,163.52,163.37,34.38510122]
[1729899666538,3.063,163.49,163.39,3.0647]
[1729899666840,34.38510122,163.55,163.4,34.38510122]
[1729899667140,34.38510122,163.52,163.37,34.38510122]
[1729899668332,3.0628,163.5,163.41,3.0644]
[1729899668633,34.38510122,163.55,163.43,34.38510122]
[1729899668935,34.38510122,163.63,163.48,34.38510122]
[1729899669334,3.0607,163.62,163.52,3.0623]
[1729899669529,34.38510122,163.63,163.52,3.0623]
[1729899669728,34.38510122,163.63,163.48,34.38510122]
[1729899669936,34.38510122,163.61,163.48,37.44810122]
[1729899670736,3.0617,163.56,163.48,37.44810122]
[1729899671236,3.0624,163.52,163.45,37.44880122]
[1729899671542,3.0624,163.52,163.45,3.0637]
[1729899671742,34.38510122,163.57,163.44,5.172]
[1729899671941,34.38510122,163.57,163.46,3.0635]
[1729899672444,3.0623,163.53,163.46,3.0635]
[1729899673130,3.10097477,163.63,163.44,8.2358]
[1729899673332,34.38510122,163.57,163.44,5.172]
[1729899673937,3.0625,163.52,163.44,5.172]
[1729899674141,34.38510122,163.57,163.44,5.172]
[1729899674342,3.0626,163.51,163.44,5.172]
[1729899674840,3.0626,163.51,163.45,3.0637]
[1729899675044,34.38510122,163.6,163.45,34.38510122]
[1729899675439,3.0619,163.55,163.47,3.0633]
[1729899678139,34.38510122,163.57,163.44,5.172]
[1729899678341,3.0626,163.52,163.44,8.2359]
[1729899678537,34.38510122,163.54,163.44,2.6677]
[1729899678740,3.0615,163.57,163.48,3.063]
[1729899678941,48.86510122,163.6,163.48,3.063]
[1729899679149,34.38510122,163.6,163.44,37.05280122]
[1729899680035,3.062,163.55,163.44,37.05280122]
[1729899680240,3.062,163.55,163.47,3.0632]
[1729899680645,3.0617,163.56,163.44,37.05280122]
[1729899680843,3.0617,163.56,163.47,34.38510122]
[1729899681147,34.38510122,163.64,163.49,34.38510122]
[1729899681349,3.0611,163.6,163.49,34.38510122]
[1729899681746,3.0611,163.6,163.46,14.48]
[1729899681747,34.38510122,163.67,163.52,34.38510122]
[1729899682053,34.38510122,163.7,163.55,34.38510122]
[1729899682346,34.38510122,163.7,163.56,2.5701]
[1729899682743,3.0599,163.66,163.58,3.0613]
[1729899682942,3.0599,163.66,163.56,2.5701]
[1729899682943,3.11740881,163.76,163.61,34.38510122]
[1729899683140,8.87049813,163.86,163.63,34.38510122]
[1729899683141,34.38510122,163.78,163.63,34.38510122]
[1729899683544,3.0585,163.73,163.66,3.0598]
[1729899683852,34.38510122,163.78,163.63,34.38510122]
[1729899684145,3.0587,163.72,163.64,3.06]
[1729899684345,3.0587,163.72,163.63,34.38510122]
[1729899685238,3.0591,163.7,163.63,34.38510122]
[1729899685441,34.38510122,163.77,163.63,34.38510122]
[1729899685841,3.0585,163.73,163.66,3.0598]
[1729899686244,37.3827981,163.8,163.66,3.0598]
[1729899686648,34.38510122,163.77,163.64,3.0601]
[1729899687053,34.38510122,163.71,163.57,36.92790122]
[1729899687743,3.0596,163.67,163.6,3.0608]
[1729899688142,34.38510122,163.74,163.6,34.38510122]
[1729899688340,34.38510122,163.77,163.63,34.38510122]
[1729899688545,34.38510122,163.8,163.66,34.38510122]
[1729899688850,3.0575,163.79,163.69,34.38510122]
[1729899689046,3.0575,163.79,163.71,34.38510122]
[1729899689248,3.0568,163.83,163.76,3.0578]
[1729899689452,34.38510122,163.88,163.74,34.38510122]
[1729899689654,34.38510122,163.85,163.71,34.38510122]
[1729899689850,3.0573,163.8,163.72,3.0586]
[1729899690153,3.0573,163.8,163.71,34.38510122]
[1729899690349,14.46,163.91,163.71,34.38510122]
[1729899690543,3.0572,163.8,163.74,3.0582]
[1729899690850,34.38510122,163.86,163.71,34.38510122]
[1729899691052,3.03210352,163.92,163.76,3.0579]
[1729899691053,3.0566,163.84,163.76,3.0579]
[1729899691248,3.0566,163.84,163.76,34.38510122]
[1729899691453,34.38510122,163.91,163.76,34.38510122]
[1729899691653,3.0561,163.86,163.8,3.0572]
[1729899691844,3.0561,163.86,163.76,34.38510122]
[1729899692047,34.38510122,163.91,163.76,34.38510122]
[1729899692347,3.0563,163.85,163.77,3.0576]
[1729899692549,34.38510122,163.91,163.76,34.38510122]